bitfinex-derivatives/quotes_ETHF0:USTF0_20250130
["timestamp","ask_amount","ask_price","bid_price","bid_amount"]
[1738196238034,3.2078,3109.1,3109.0,0.64332]
[1738196238240,0.64806618,3109.4,3109.2,0.64327]
[1738196239242,0.64328,3109.2,3109.0,0.64331]
[1738196239445,0.5505,3109.1,3109.0,0.64331]
[1738196242644,0.5505,3109.1,3108.6,0.536]
[1738196242841,0.5505,3109.1,3108.5,3.72012406]
[1738196243048,0.64334,3109.0,3108.8,0.64335]
[1738196243351,0.64339,3108.7,3108.5,0.64342]
[1738196243847,0.5123,3108.6,3108.5,0.64342]
[1738196244048,0.00482618,3109.4,3108.5,2.66382406]
[1738196244238,0.00482618,3109.4,3109.3,0.64326]
[1738196244239,3.21262618,3109.4,3109.3,0.64326]
[1738196244444,0.00482618,3109.4,3109.3,0.64326]
[1738196251243,0.64308,3110.2,3110.0,0.64311]
[1738196251442,3.2078,3110.3,3109.8,2.66382406]
[1738196251748,3.2078,3110.3,3110.2,0.64307]
[1738196251946,3.2078,3110.3,3110.1,0.64308]
[1738196252148,3.2078,3110.3,3109.9,0.5554]
[1738196252342,3.2078,3110.3,3109.9,0.00482618]
[1738196252553,0.64311,3110.0,3109.9,0.00482618]
[1738196262345,1.18311,3110.1,3109.9,0.00482618]
[1738196262551,0.64311,3110.0,3109.9,0.00482618]
[1738196262753,3.2078,3110.3,3109.9,0.00482618]
[1738196263060,3.2078,3110.3,3110.2,0.64307]
[1738196264763,3.2078,3110.3,3110.1,0.64308]
[1738196265658,3.2078,3110.3,3109.9,0.55022618]
[1738196265862,0.54222618,3110.5,3110.3,0.64304]
[1738196266058,0.54222618,3110.5,3110.4,0.64303]
[1738196266561,0.00482618,3110.5,3110.4,0.64303]
[1738196270466,0.00482618,3110.5,3110.4,3.30685406]
[1738196281579,0.00482618,3110.5,3110.4,0.64303]
[1738196282583,0.64305,3110.3,3110.2,1.0366]
[1738196282872,0.00482618,3110.5,3110.1,3.85089]
[1738196282873,0.64307,3110.2,3110.1,3.2078]
[1738196283078,1.16927,3110.2,3110.1,3.2078]
[1738196283475,0.6431,3110.1,3109.9,1.19335618]
[1738196283977,0.64309,3110.1,3109.9,1.19334618]
[1738196284781,0.64309,3110.1,3109.9,0.55022618]
[1738196285284,0.64309,3110.1,3109.9,1.19334618]
[1738196285578,0.5262,3110.2,3109.9,0.00482618]
[1738196285579,0.64311,3110.0,3109.9,0.00482618]
[1738196293085,0.64325,3109.4,3109.1,0.64329]
[1738196293282,0.5369,3109.3,3109.0,3.2078]
[1738196293476,1.18016,3109.3,3109.0,3.85111]
[1738196293677,0.5369,3109.3,3109.0,3.85111]
[1738196294079,0.64331,3109.1,3108.9,0.5279]
[1738196295787,0.64331,3109.1,3108.9,1.17124]
[1738196295986,0.64328,3109.2,3108.9,1.17124]
[1738196296187,0.5369,3109.3,3108.9,3.19172406]
[1738196296381,0.5369,3109.3,3109.1,0.64329]
[1738196297084,0.5369,3109.3,3109.2,0.64328]
[1738196297390,0.5369,3109.3,3109.1,0.64329]
[1738196297890,0.5369,3109.3,3108.9,3.19172406]
[1738196297891,0.5369,3109.3,3108.9,0.5279]
[1738196298385,0.64331,3109.1,3108.9,0.5279]
[1738196298785,3.2078,3109.2,3108.8,0.00482618]
[1738196298980,0.64334,3108.9,3108.8,0.00482618]
[1738196301988,1.17524,3108.9,3108.8,0.00482618]
[1738196302587,1.17524,3108.9,3107.7,0.5536]
[1738196302588,6.95445,3108.8,3107.7,0.5536]
[1738196302892,3.2078,3108.1,3107.4,3.2078]
[1738196303090,3.18792406,3108.0,3107.2,1.0373]
[1738196303387,0.64362,3107.6,3107.2,1.0373]
[1738196303589,0.64362,3107.6,3107.2,1.68098]
[1738196303784,0.00482618,3107.7,3107.2,1.0373]
[1738196303986,0.00482618,3107.7,3107.1,0.00482618]
[1738196304187,3.21262618,3107.7,3107.1,0.00482618]
[1738196304479,0.64362,3107.6,3107.3,0.64367]
[1738196305090,0.64364,3107.5,3107.2,0.5257]
[1738196305792,0.64362,3107.6,3107.2,1.16939]
[1738196305994,0.64363,3107.5,3107.2,1.16939]
[1738196306386,0.64363,3107.5,3107.2,0.5257]
[1738196306587,0.64366,3107.4,3107.2,0.5257]
[1738196306988,0.64364,3107.5,3107.2,0.5257]
[1738196307395,3.85623618,3107.7,3107.3,0.64366]
[1738196307589,0.64362,3107.6,3107.3,0.64366]
[1738196307790,3.21262618,3107.7,3107.2,0.5257]
[1738196307989,0.64363,3107.5,3107.2,1.16939]
[1738196309898,3.21262618,3107.7,3107.2,0.5257]
[1738196310098,0.64364,3107.5,3107.2,0.5257]
[1738196310299,3.21262618,3107.7,3107.2,0.5257]
[1738196310492,0.64365,3107.4,3107.2,0.5257]
[1738196310698,0.64364,3107.5,3107.2,0.5257]
[1738196310902,0.64362,3107.6,3107.2,1.16938]
[1738196311196,0.64362,3107.6,3107.2,0.5257]
[1738196311502,3.21262618,3107.7,3107.5,0.64363]
[1738196311704,3.85621618,3107.7,3107.6,0.5018]
[1738196312006,3.21262618,3107.7,3107.1,0.00482618]
[1738196312197,0.64362,3107.6,3107.3,1.68197]
[1738196313496,3.21262618,3107.7,3107.3,1.68197]
[1738196313497,3.21262618,3107.7,3107.3,1.0383]
[1738196313696,3.21262618,3107.7,3107.5,0.64362]
[1738196314001,3.21262618,3107.7,3107.4,0.5242]
[1738196314304,3.21262618,3107.7,3107.3,0.5303]
[1738196314502,3.85623618,3107.7,3107.4,1.67585]
[1738196314906,0.64361,3107.6,3107.4,1.67585]
[1738196315097,3.21262618,3107.7,3107.4,1.0322]
[1738196315293,0.64364,3107.5,3107.3,0.5303]
[1738196315497,0.64365,3107.4,3107.3,0.5303]
[1738196315700,3.21262618,3107.7,3107.3,0.5303]
[1738196315903,0.64362,3107.6,3107.3,1.17396]
[1738196316803,0.64365,3107.4,3107.3,0.5303]
[1738196317000,0.64364,3107.5,3107.3,0.5303]
[1738196317200,0.64364,3107.5,3107.3,1.17397]
[1738196317704,0.64364,3107.5,3107.3,0.5303]
[1738196318295,0.64364,3107.5,3107.3,1.17397]
[1738196318605,0.64364,3107.5,3107.3,0.5303]
[1738196319397,3.21262618,3107.7,3107.3,0.5303]
[1738196319704,3.21262618,3107.7,3107.3,1.17397]
[1738196320102,0.64364,3107.5,3107.3,1.17397]
[1738196320304,0.64364,3107.5,3107.3,0.5303]
[1738196320703,3.21262618,3107.7,3107.3,0.5303]
[1738196321004,3.85622618,3107.7,3107.5,0.64363]
[1738196321302,3.85622618,3107.7,3107.4,0.64364]
[1738196321606,3.85622618,3107.7,3107.3,0.5303]
[1738196321804,3.85622618,3107.7,3107.4,0.64365]
[1738196322104,3.21262618,3107.7,3107.3,0.5303]
[1738196322300,0.00482618,3107.7,3107.4,3.2078]
[1738196322500,0.00482618,3107.7,3107.6,0.64361]
[1738196326105,3.2078,3108.3,3108.2,0.64349]
[1738196327001,3.2078,3108.8,3108.7,0.64338]
[1738196327203,0.00482618,3108.6,3108.2,2.66382406]
[1738196327513,0.00482618,3108.6,3108.5,0.64342]
[1738196328405,0.00482618,3108.6,3108.5,3.30724406]
[1738196329909,3.2078,3109.3,3108.5,7.66382406]
[1738196330203,3.7603,3109.9,3108.8,2.66382406]
[1738196330403,3.2078,3109.9,3109.2,0.64328]
[1738196330602,3.2078,3109.9,3109.1,7.47987406]
[1738196330807,3.2078,3109.9,3109.1,5.87162406]
[1738196331110,3.2078,3109.9,3109.8,0.64316]
[1738196331311,0.5076,3110.4,3110.2,0.64306]
[1738196331606,0.5076,3110.4,3109.7,2.66382406]
[1738196331607,3.85562618,3110.6,3110.3,0.64304]
[1738196331808,0.64302,3110.5,3110.2,0.64306]
[1738196332603,0.64302,3110.5,3110.1,0.64308]
[1738196332807,3.2078,3110.2,3109.1,5.87162406]
[1738196333110,3.18862406,3110.1,3109.3,1.69515]
[1738196333304,0.64319,3109.7,3109.3,1.69515]
[1738196333905,0.64319,3109.7,3109.4,0.64323]
[1738196334212,0.64316,3109.8,3109.4,0.64323]
[1738196334400,0.64319,3109.7,3109.4,0.64323]
[1738196335613,3.2078,3109.8,3109.3,1.0519]
[1738196335910,0.64319,3109.7,3109.3,1.0519]
[1738196336118,3.2078,3109.8,3109.4,0.64324]
[1738196337710,3.2078,3109.8,3109.3,1.0519]
[1738196337911,3.2078,3109.8,3109.7,0.64318]
[1738196338114,3.16762406,3110.4,3109.4,0.5476]
[1738196338115,3.2078,3110.2,3109.5,3.2078]
[1738196338315,0.5132,3110.5,3110.2,0.64307]
[1738196338716,1.15623,3110.5,3109.6,0.6432]
[1738196338916,3.2078,3110.2,3109.9,0.64312]
[1738196339420,3.2078,3110.2,3110.0,0.6431]
[1738196339918,2.66382406,3110.1,3109.5,3.2078]
[1738196340114,3.2078,3109.8,3109.4,0.5476]
[1738196340304,1.16128,3109.7,3109.4,0.5476]
[1738196340813,0.6432,3109.6,3109.4,0.5476]
[1738196341214,0.6432,3109.6,3109.4,1.19083]
[1738196341514,1.16129,3109.7,3109.4,1.19083]
[1738196341711,0.6432,3109.6,3109.4,0.5476]
[1738196341908,0.64322,3109.5,3109.3,1.69515]
[1738196342113,0.64322,3109.5,3109.3,0.64325]
[1738196342307,0.64321,3109.6,3109.3,0.64325]
[1738196342709,0.64321,3109.6,3109.2,0.00482618]
[1738196342710,0.5181,3109.7,3109.2,0.00482618]
[1738196342906,1.16128,3109.7,3109.3,0.64326]
[1738196343113,1.16128,3109.7,3109.4,0.64323]
[1738196345013,1.16128,3109.7,3109.2,0.00482618]
[1738196345014,0.64325,3109.4,3109.2,0.00482618]
[1738196345221,0.5181,3109.7,3109.2,0.00482618]
[1738196345414,1.16128,3109.7,3109.5,0.64321]
[1738196345815,1.16128,3109.7,3109.4,0.64322]
[1738196346015,0.5181,3109.7,3109.2,0.00482618]
[1738196346216,5.87162406,3109.8,3109.4,0.64324]
[1738196346413,0.64319,3109.7,3109.4,0.64324]
[1738196346614,0.64319,3109.7,3109.2,0.00482618]
[1738196346818,3.85097,3109.8,3109.5,0.64321]
[1738196347916,5.87162406,3109.8,3109.2,0.00482618]
[1738196348117,0.64319,3109.7,3109.2,0.00482618]
[1738196348313,6.51478406,3109.8,3109.5,0.64321]
[1738196348624,0.5209,3110.0,3109.9,0.64313]
[1738196348824,0.5177,3110.1,3109.9,0.64313]
[1738196349123,3.2078,3110.2,3110.1,0.64309]
[1738196349519,0.5277,3110.5,3110.1,0.5389]
[1738196349820,0.00482618,3110.6,3110.5,0.64301]
[1738196350220,0.00482618,3110.6,3110.5,3.85081]
[1738196357920,6.18e-06,3110.6,3110.5,8.85081]
[1738196358826,6.18e-06,3110.6,3110.5,3.85081]
[1738196359033,6.18e-06,3110.6,3110.5,8.85081]
[1738196362221,1.16405,3111.8,3110.5,8.2078]
[1738196362426,1.16405,3111.8,3111.5,0.64279]
[1738196362634,1.16405,3111.8,3111.5,0.6428]
[1738196363624,1.16405,3111.8,3111.6,0.64277]
[1738196364232,1.16405,3111.8,3111.7,2.66382406]
[1738196364233,0.5213,3111.8,3111.7,2.66382406]
[1738196364437,0.5357,3111.9,3111.8,0.64274]
[1738196365330,0.5357,3111.9,3111.7,2.66382406]
[1738196365530,0.5357,3111.9,3111.4,2.66382406]
[1738196365737,0.64274,3111.8,3111.6,0.64277]
[1738196365931,0.5357,3111.9,3111.6,0.64277]
[1738196366131,1.17843,3111.9,3111.6,0.64277]
[1738196366532,0.64279,3111.6,3111.4,3.30664406]
[1738196366745,0.64277,3111.7,3111.5,0.64279]
[1738196367438,0.5301,3111.8,3111.4,2.66382406]
[1738196367638,0.5357,3111.9,3111.4,2.66382406]
[1738196367939,0.5357,3111.9,3111.8,0.64274]
[1738196371442,0.64275,3111.8,3111.6,0.64277]
[1738196371646,0.5357,3111.9,3111.4,2.66382406]
[1738196372142,1.0809,3111.9,3111.4,2.66382406]
[1738196372339,1.0809,3111.9,3111.8,0.64274]
[1738196374637,1.0809,3111.9,3111.4,2.66382406]
[1738196374944,1.0809,3111.9,3111.8,0.64274]
[1738196375742,1.0809,3111.9,3111.4,2.66382406]
[1738196375936,1.0809,3111.9,3111.6,0.64276]
[1738196375937,0.64275,3111.8,3111.6,0.64276]
[1738196376343,1.72363,3111.9,3111.7,0.64275]
[1738196376539,0.64274,3111.8,3111.7,0.64275]
[1738196377337,1.72363,3111.9,3111.7,0.64275]
[1738196378043,1.0809,3111.9,3111.4,2.66382406]
[1738196378444,0.6428,3111.5,3111.4,0.64281]
[1738196378642,0.64282,3111.4,3111.3,0.00482618]
[1738196378947,1.19372,3111.4,3111.3,0.64767618]
[1738196379147,0.5509,3111.4,3111.3,0.64767618]
[1738196379445,1.19372,3111.4,3111.3,0.00482618]
[1738196380040,0.5509,3111.4,3110.8,2.66382406]
[1738196380240,0.64287,3111.2,3110.8,2.66382406]
[1738196380448,0.64287,3111.2,3111.0,0.64289]
[1738196380950,0.5509,3111.4,3110.8,2.66382406]
[1738196381248,0.5509,3111.4,3110.9,0.64291]
[1738196381249,0.64289,3111.1,3110.9,0.64291]
[1738196381547,3.85069,3111.1,3110.9,0.64291]
[1738196381756,3.2078,3111.1,3111.0,0.64291]
[1738196382349,3.2078,3111.1,3110.8,2.66865024]
[1738196382847,0.64291,3111.0,3110.8,0.64775618]
[1738196383049,3.2078,3111.1,3110.8,0.00482618]
[1738196383242,0.5357,3110.9,3110.8,0.64777618]
[1738196384348,1.0639,3110.9,3110.8,0.64777618]
[1738196385550,0.5357,3110.9,3110.8,3.31160024]
[1738196385753,3.2078,3111.1,3111.0,0.64291]
[1738196386453,3.2078,3111.1,3111.0,1.71581]
[1738196386846,0.549,3111.5,3111.4,0.64282]
[1738196387042,3.7588,3111.9,3111.3,2.66382406]
[1738196387242,3.7588,3111.9,3111.8,0.64274]
[1738196387442,3.2078,3111.9,3111.8,0.64274]
[1738196391655,0.00319108,3112.0,3111.9,0.64272]
[1738196391850,0.00319108,3112.0,3111.9,3.30654406]
[1738196392446,0.00319108,3112.0,3111.9,3.84474406]
[1738196394855,0.00319108,3112.0,3111.9,0.64272]
[1738196396355,0.64274,3111.9,3111.6,3.30658406]
[1738196396664,0.64274,3111.9,3111.4,0.5362]
[1738196396665,0.64278,3111.7,3111.5,0.64279]
[1738196397256,1.16206,3111.8,3111.5,0.6428]
[1738196397649,3.2078,3111.7,3111.5,0.6428]
[1738196397854,3.85058,3111.7,3111.5,0.6428]
[1738196398666,3.85058,3111.7,3111.5,0.64279]
[1738196399165,1.16205,3111.8,3111.6,0.64277]
[1738196399461,0.5193,3111.8,3111.7,0.64276]
[1738196400062,0.5193,3111.8,3111.6,0.64277]
[1738196400063,1.16205,3111.8,3111.6,0.64277]
[1738196400363,3.2078,3111.7,3110.8,0.00482618]
[1738196400556,3.2078,3111.2,3110.8,0.00482618]
[1738196400759,1.027,3111.1,3110.8,0.00482618]
[1738196401063,0.64282,3111.5,3111.2,0.64286]
[1738196401263,1.16212,3111.5,3111.2,0.64286]
[1738196401462,0.5077,3111.9,3111.3,2.66382406]
[1738196401663,0.00319108,3112.0,3111.8,0.64273]
[1738196401861,0.64272,3111.9,3111.7,0.64275]
[1738196402259,0.00319108,3112.0,3111.6,2.66382406]
[1738196402459,0.64590108,3112.0,3111.7,0.64276]
[1738196402768,0.64282,3111.5,3111.2,0.64287]
[1738196402971,0.5193,3111.4,3111.2,0.64287]
[1738196404170,3.2078,3111.7,3111.3,2.66382406]
[1738196404359,3.7475,3112.2,3111.9,0.64272]
[1738196404565,3.2078,3112.2,3111.9,3.30654406]
[1738196405467,3.2078,3112.2,3111.9,0.64272]
[1738196406266,3.2078,3112.2,3111.9,3.30654406]
[1738196408058,0.501,3112.5,3111.9,3.30654406]
[1738196408865,1.1436,3112.5,3111.9,3.30654406]
[1738196410571,0.64265,3112.3,3111.9,3.30654406]
[1738196411777,0.64266,3112.2,3111.9,3.30654406]
[1738196411965,0.64265,3112.3,3111.9,3.30654406]
[1738196412168,3.7088,3112.5,3111.7,4.35205]
[1738196412473,0.64274,3111.8,3111.7,3.2078]
[1738196419289,0.64278,3111.7,3111.4,0.64281]
[1738196419475,1.16418,3111.7,3111.4,0.64281]
[1738196420271,3.2078,3111.6,3111.2,0.5201]
[1738196420471,0.64288,3111.2,3111.0,0.6429]
[1738196421472,0.64286,3111.3,3111.0,0.6429]
[1738196421684,0.5307,3111.5,3111.0,0.6429]
[1738196421879,0.64286,3111.3,3111.0,0.6429]
[1738196422080,0.64286,3111.3,3110.9,1.0374]
[1738196422275,0.64286,3111.3,3111.1,0.64288]
[1738196423484,3.2078,3111.6,3111.0,2.66382406]
[1738196423784,3.85059,3111.6,3111.4,0.64281]
[1738196423983,3.85059,3111.6,3111.4,0.64282]
[1738196424974,3.2078,3111.6,3111.0,2.66382406]
[1738196425178,3.2078,3111.6,3111.4,0.64282]
[1738196425179,3.8506,3111.6,3111.4,0.64282]
[1738196425378,3.2078,3111.6,3111.5,0.6428]
[1738196425581,0.00319108,3112.0,3111.9,0.64272]
[1738196426977,0.00319108,3112.0,3111.8,1.0206]
[1738196427181,0.00319108,3112.0,3111.4,2.66382406]
[1738196427384,0.00319108,3112.0,3111.1,3.2078]
[1738196427385,0.64277,3111.7,3111.5,0.6428]
[1738196427585,0.64279,3111.6,3111.4,0.64281]
[1738196427773,0.64279,3111.6,3111.2,0.5149]
[1738196427774,0.64277,3111.7,3111.5,0.6428]
[1738196427977,0.5491,3111.8,3111.3,0.64283]
[1738196428176,0.64276,3111.7,3111.3,0.64284]
[1738196428378,0.64282,3111.5,3111.3,0.64284]
[1738196429188,0.64285,3111.3,3111.2,0.5149]
[1738196429582,3.2078,3111.6,3110.8,2.66865024]
[1738196429888,0.64293,3110.9,3110.8,0.00482618]
[1738196430084,0.64289,3111.1,3110.8,0.64776618]
[1738196430990,0.64292,3111.0,3110.8,0.00482618]
[1738196431188,0.64292,3111.0,3110.8,0.64777618]
[1738196432293,3.7569,3111.2,3110.8,0.00482618]
[1738196432496,0.64293,3110.9,3110.8,0.00482618]
[1738196434998,0.64289,3111.1,3110.8,0.64775618]
[1738196435188,0.64293,3110.9,3110.8,0.00482618]
[1738196435901,0.64292,3111.0,3110.8,0.00482618]
[1738196436195,0.64292,3111.0,3110.8,0.64776618]
[1738196436397,0.64293,3110.9,3110.8,0.00482618]
[1738196437297,3.7569,3111.2,3110.8,0.64776618]
[1738196437500,0.6429,3111.1,3110.8,0.64776618]
[1738196437697,3.7569,3111.2,3110.8,0.64776618]
[1738196437902,0.64292,3111.0,3110.8,0.64776618]
[1738196438604,3.7569,3111.2,3110.8,0.00482618]
[1738196438795,0.64293,3110.9,3110.8,0.00482618]
[1738196446496,3.7569,3111.2,3110.8,0.00482618]
[1738196446705,3.2078,3111.2,3111.1,0.64289]
[1738196447104,3.2078,3111.7,3111.6,0.64278]
[1738196447501,3.2078,3111.7,3111.5,0.64279]
[1738196448014,3.85057,3111.7,3111.5,0.64279]
[1738196448706,3.85057,3111.7,3111.2,2.66382406]
[1738196448908,3.85057,3111.7,3111.4,0.64282]
[1738196449209,3.2078,3111.7,3111.2,2.66382406]
[1738196449408,3.2078,3111.7,3111.6,0.64278]
[1738196449712,3.2078,3111.7,3111.2,2.66382406]
[1738196450102,0.6428,3111.6,3111.4,0.64282]
[1738196450306,3.2078,3111.7,3111.4,0.64282]
[1738196450611,3.2078,3111.7,3111.5,0.6428]
[1738196451203,3.2078,3111.7,3111.6,0.64278]
[1738196452405,0.00319108,3112.0,3111.5,0.6428]
[1738196452606,0.00319108,3112.0,3111.6,1.0514]
[1738196452808,0.64591108,3112.0,3111.7,0.64275]
[1738196453108,0.64591108,3112.0,3111.7,1.15035]
[1738196453314,0.00319108,3112.0,3111.8,0.64274]
[1738196454907,0.00319108,3112.0,3111.7,0.5076]
[1738196455307,0.64274,3111.8,3111.7,0.5076]
[1738196455910,0.00319108,3112.0,3111.2,2.66382406]
[1738196456214,0.64278,3111.7,3111.4,0.64281]
[1738196456613,0.00319108,3112.0,3111.3,1.6083]
[1738196456912,0.64275,3111.8,3111.5,0.6428]
[1738196457112,0.64590108,3112.0,3111.7,0.64276]
[1738196457713,0.64273,3111.9,3111.6,0.64278]
[1738196458611,0.64278,3111.7,3111.4,0.64282]
[1738196458814,0.5387,3111.6,3111.3,1.0558]
[1738196459017,0.64281,3111.5,3111.3,1.0558]
[1738196459212,0.5387,3111.6,3111.0,3.7079]
[1738196459412,0.64293,3110.9,3110.8,0.00482618]
[1738196460109,1.18163,3110.9,3110.8,0.00482618]
[1738196460511,3.85072,3111.0,3110.8,0.00482618]
[1738196460719,0.64293,3110.9,3110.8,0.00482618]
[1738196462511,1.15893,3110.9,3110.8,0.00482618]
[1738196465305,5.516,3110.9,3109.7,3.17362406]
[1738196465620,5.516,3110.9,3108.2,2.23856297]
[1738196465621,0.64322,3109.5,3109.1,3.30711406]
[1738196465917,2.66382406,3110.1,3109.1,3.30711406]
[1738196465918,3.2078,3109.7,3109.1,0.5008]
[1738196466113,0.5094,3110.0,3109.6,0.64319]
[1738196466414,0.5094,3110.0,3109.7,0.5008]
[1738196466617,0.64316,3109.8,3109.7,0.5008]
[1738196466806,0.5094,3110.0,3109.7,0.5008]
[1738196467007,1.15252,3110.0,3109.7,0.5008]
[1738196467211,0.64312,3110.0,3109.7,0.5008]
[1738196467611,3.21262618,3110.1,3109.7,0.5008]
[1738196467813,0.64314,3109.9,3109.7,0.5008]
[1738196468024,3.21262618,3110.1,3109.7,0.5008]
[1738196468216,3.21262618,3110.1,3109.6,0.5164]
[1738196468415,0.6432,3109.6,3109.5,0.00482618]
[1738196469121,3.85099,3109.7,3109.5,0.00482618]
[1738196469314,3.2078,3109.7,3109.5,0.00482618]
[1738196469515,0.6432,3109.6,3109.5,0.00482618]
[1738196471317,3.85098,3109.7,3109.5,0.00482618]
[1738196471620,0.00482618,3110.1,3109.5,0.55102618]
[1738196471621,0.64312,3110.0,3109.5,0.55102618]
[1738196472123,0.00482618,3110.1,3110.0,0.64311]
[1738196472326,0.00482618,3110.1,3110.0,3.30693406]
[1738196474322,0.00482618,3110.1,3109.9,1.0533]
[1738196474521,0.00482618,3110.1,3109.5,0.55102618]
[1738196474829,0.64316,3109.8,3109.6,0.64319]
[1738196475128,0.64313,3109.9,3109.5,0.55102618]
[1738196475321,0.5146,3110.0,3109.5,0.55102618]
[1738196475520,0.5146,3110.0,3109.5,0.00482618]
[1738196475521,0.6432,3109.6,3109.5,0.00482618]
[1738196475723,0.5146,3110.0,3109.5,0.00482618]
[1738196475923,0.5146,3110.0,3109.5,0.64803618]
[1738196476125,0.64317,3109.8,3109.5,0.64803618]
[1738196476325,0.64317,3109.8,3109.5,0.00482618]
[1738196476525,0.64314,3109.9,3109.7,0.64318]
[1738196476724,1.15773,3110.0,3109.8,0.64315]
[1738196477024,0.5146,3110.0,3109.7,0.64318]
[1738196477225,0.5146,3110.0,3109.8,0.64314]
[1738196477422,0.5146,3110.0,3109.5,0.00482618]
[1738196477620,0.64319,3109.7,3109.5,0.00482618]
[1738196477829,3.21262618,3110.1,3109.5,0.00482618]
[1738196478123,3.21262618,3110.1,3109.9,0.64312]
[1738196478324,3.21262618,3110.1,3110.0,1.17711]
[1738196478527,0.00482618,3110.1,3110.0,3.84093406]
[1738196479233,0.00482618,3110.1,3110.0,1.17711]
[1738196479733,0.00482618,3110.1,3109.5,1.61285618]
[1738196479734,0.64792618,3110.1,3109.8,0.64314]
[1738196480029,0.00482618,3110.1,3110.0,0.64311]
[1738196480625,0.00482618,3110.1,3109.8,3.85094]
[1738196480930,0.00482618,3110.1,3109.9,0.64312]
[1738196481124,0.00482618,3110.1,3110.0,3.30693406]
[1738196484130,3.2078,3110.5,3110.4,0.64303]
[1738196484325,3.2078,3110.5,3110.4,3.30685406]
[1738196484923,0.5495,3111.3,3111.2,0.64287]
[1738196485132,0.5495,3111.3,3110.6,1.60747]
[1738196485133,3.2078,3111.5,3111.4,0.64282]
[1738196485632,3.2078,3111.5,3111.3,0.64284]
[1738196486423,3.2078,3111.5,3111.1,1.06322618]
[1738196486629,0.64286,3111.3,3111.1,0.52942618]
[1738196486825,3.2078,3111.5,3111.1,0.52942618]
[1738196487033,0.00482618,3111.6,3111.4,0.64281]
[1738196487533,0.00482618,3111.6,3111.2,1.0876]
[1738196488033,0.00482618,3111.6,3111.5,0.6428]
[1738196490539,0.00482618,3111.6,3111.2,1.0876]
[1738196490732,0.64282,3111.5,3111.2,1.18966]
[1738196490932,0.00482618,3111.6,3111.2,0.5468]
[1738196491128,0.00482618,3111.6,3111.4,0.64281]
[1738196491323,0.00482618,3111.6,3111.5,0.6428]
[1738196491738,0.64281,3111.5,3111.2,1.74275]
[1738196492036,0.00482618,3111.6,3111.5,0.6428]
[1738196493337,0.00482618,3111.6,3111.3,3.21212406]
[1738196493736,0.00482618,3111.6,3111.4,0.64282]
[1738196494335,0.00482618,3111.6,3111.2,0.5468]
[1738196494540,0.64283,3111.4,3111.2,0.5468]
[1738196495238,1.15636,3111.3,3111.1,0.00482618]
[1738196495441,0.5135,3111.3,3111.1,0.00482618]
[1738196495940,0.64287,3111.2,3111.1,0.00482618]
[1738196499428,3.7289,3111.5,3111.1,0.00482618]
[1738196499841,4.37171,3111.5,3111.3,0.64283]
[1738196500342,3.7289,3111.5,3111.3,0.64283]
[1738196500543,3.2078,3111.5,3111.4,0.64282]
[1738196501643,0.00482618,3111.6,3111.5,0.6428]
[1738196503846,0.00482618,3111.6,3111.1,3.76642618]
[1738196504145,0.64283,3111.4,3111.2,0.64286]
[1738196504348,0.64282,3111.4,3111.1,4.91029618]
[1738196504738,0.5288,3111.5,3111.1,4.26742618]
[1738196504940,0.5288,3111.5,3111.1,3.71362618]
[1738196505235,1.15853,3111.4,3111.3,0.64285]
[1738196505442,1.15853,3111.4,3111.2,0.64286]
[1738196506238,0.64287,3111.2,3111.1,0.00482618]
[1738196506641,0.64286,3111.3,3111.1,0.64769618]
[1738196506837,0.5157,3111.4,3111.1,0.00482618]
[1738196507044,1.15853,3111.4,3111.2,0.64286]
[1738196508049,0.5288,3111.5,3111.3,0.64283]
[1738196508050,1.17162,3111.5,3111.3,0.64283]
[1738196508347,0.00482618,3111.6,3111.4,0.64282]
[1738196508541,0.00482618,3111.6,3111.4,0.5102]
[1738196508737,0.00482618,3111.6,3111.5,0.6428]
[1738196510242,0.00482618,3111.6,3111.5,1.1707]
[1738196511744,0.00482618,3111.6,3111.5,0.6428]
[1738196513844,0.00482618,3111.6,3111.4,0.5102]
[1738196514047,0.00482618,3111.6,3111.5,0.6428]
[1738196519251,0.00482618,3111.6,3111.5,3.8506]
[1738196519446,3.2078,3112.7,3112.3,0.64263]
[1738196519447,0.5177,3112.6,3112.3,0.64263]
[1738196519647,0.64262,3112.4,3112.2,0.64265]
[1738196520454,0.5177,3112.6,3112.2,0.64265]
[1738196520661,0.64261,3112.5,3112.2,0.64265]
[1738196521158,0.64262,3112.4,3112.2,0.64265]
[1738196521856,0.52089108,3112.6,3112.1,0.64267]
[1738196521857,0.64264,3112.3,3112.1,0.64267]
[1738196522053,0.64269,3112.1,3111.9,0.64271]
[1738196522254,0.52089108,3112.6,3111.8,0.5031]
[1738196522452,0.64263,3112.4,3112.1,0.64266]
[1738196522658,0.52089108,3112.6,3111.9,0.5455]
[1738196522849,0.64266,3112.3,3112.0,0.64269]
[1738196523050,0.6426,3112.5,3112.2,0.64265]
[1738196523250,0.52089108,3112.6,3112.0,0.5404]
[1738196523553,0.64261,3112.5,3112.2,0.64264]
[1738196523953,0.52089108,3112.6,3112.2,0.64264]
[1738196524156,0.64261,3112.5,3112.0,0.5404]
[1738196524359,0.64261,3112.5,3112.3,0.64262]
[1738196524757,0.52089108,3112.6,3112.0,3.20422406]
[1738196524950,0.64262,3112.4,3112.2,0.64265]
[1738196525345,0.64261,3112.5,3112.2,0.64265]
[1738196526761,0.52089108,3112.6,3112.1,0.64267]
[1738196526957,0.64265,3112.3,3112.1,0.64267]
[1738196527850,0.52089108,3112.6,3111.9,0.5455]
[1738196528061,3.2078,3112.3,3111.7,2.66382406]
[1738196528250,0.5501,3112.2,3111.7,2.66382406]
[1738196528463,0.64271,3112.0,3111.8,0.64274]
[1738196529363,0.5501,3112.2,3111.6,1.027]
[1738196529559,0.5419,3111.9,3111.6,0.5275]
[1738196529755,0.64276,3111.7,3111.6,1.17028]
[1738196530059,0.64276,3111.7,3111.6,0.64278]